[Event "CCT Airthings Masters Play-In 2023"]
[Site "Online"]
[Date "2023.02.03"]
[Round "3"]
[White "Nepomniachtchi, Ian"]
[Black "AlexanderL"]
[Result "1-0"]
[ECO "C42"]
[WhiteElo "2793"]
[BlackElo "2615"]
[Annotator "TA"]
[PlyCount "117"]
[EventDate "2023.02.03"]
[EventType "swiss"]
[EventCountry "NET"]
[SourceTitle "playchess.com"]
[Source "ChessBase"]
[SourceQuality "1"]
[TimeControl "600+2"]

{[%evp 14,117,32,30,24,27,37,14,28,20,14,22,22,27,69,63,94,100,92,100,128,89,103,92,91,51,105,100,127,112,112,97,116,56,110,119,115,94,101,97,125,83,122,140,131,113,114,71,71,70,70,74,64,42,42,42,35,5,35,21,14,0,0,0,0,0,0,0,0,0,0,0,0,0,0,0,0,0,0,0,0,-10,-10,-56,-56,-56,-56,-56,-12,-12,-10,-10,-9,-13,-12,-12,-12,-12,-12,-13,-13,-18,29974,29975,29979,29980]} 1. e4 {[%emt 0:00:03]} e5 {[%emt 0:00:09]} 2. Nf3 {[%emt 0:00:01]} Nf6 {[%emt 0:00:01][%cal Bg8f6,Bf6e4,Be4d6,Bd6f5][%mdl 32]} 3. Nxe5 {[%emt 0:00:06]} d6 {[%emt 0:00:01]} 4. Nf3 {[%emt 0:00:01]} Nxe4 {[%emt 0:00:02]} 5. d4 {[%emt 0:00:02]} d5 {[%emt 0:00:02]} 6. Bd3 {[%emt 0:00:01]} Be7 {[%emt 0:00:15]} 7. O-O {[%emt 0:00:02]} Nc6 {[%emt 0:00:03]} 8. Nbd2 {[%emt 0:00:05]} Nd6 {[%emt 0:00:07] 8...Bf5 is the modern continuation. C42: Petroff Defence: 3 Nxe5 and unusual White 3rd moves.} 9. c3 {[%emt 0:00:18]} Bf5 {[%emt 0:00:02]} 10. Bxf5 {[%emt 0:00:15]} Nxf5 {[%emt 0:00:01] The position is equal.} 11. Qb3 {[%emt 0:00:06]} b6 {[%emt 0:00:07]} 12. Re1 {[%emt 0:00:09]} O-O {[%emt 0:00:12]} 13. Ne5 {[%emt 0:01:51]} Nb8 {[%emt 0:01:00]} 14. Ndf3 {[%emt 0:00:11] [#]} Nh4 $146 {[%emt 0:00:20]} ({Predecessor:} 14... f6 15. Nd3 c6 16. c4 dxc4 17. Qxc4+ Rf7 18. Bf4 Qd5 19. Qxd5 cxd5 20. g4 Nd6 21. Rxe7 Rxe7 22. Bxd6 {1-0 Alonso Arburu,J-Moreno Aguilera,A ESP-Cup2 2/4 corr 1984}) 15. Nxh4 {[%emt 0:00:16]} Bxh4 {[%emt 0:00:00]} 16. Bf4 {[%emt 0:00:00]} c6 {[%emt 0:00:18]} 17. c4 {[%emt 0:00:08][%cal Bc3c4,Bc4d5,Bd5d6][%mdl 32]} Bf6 {[%emt 0:00:05]} 18. Rac1 {[%emt 0:00:09]} Bxe5 {[%emt 0:00:20]} 19. dxe5 {[%emt 0:00:06]} (19. Rxe5 Nd7 $14) 19... Nd7 {[%emt 0:00:28]} (19... Na6 $1 $14) 20. cxd5 $16 {[%emt 0:00:09]} Nc5 {[%emt 0:00:35] [#]} 21. Rxc5 {[%emt 0:00:04][%mdl 512]} bxc5 {[%emt 0:00:00] [#] Black is weak on the dark squares} 22. d6 {[%emt 0:00:29]} (22. dxc6 $6 Qa5 23. Rd1 Rad8 $11) 22... Qd7 {[%emt 0:00:06]} 23. Qc3 {[%emt 0:00:24] White has more active pieces. The black rooks are badly placed.} ({Better is} 23. Qc2 $16) 23... Rab8 {[%emt 0:00:03]} (23... Qe6 $14) 24. Be3 {[%emt 0:00:11][%cal Bf4e3,Be3d4,Bd4c3][%mdl 1056] White has strong compensation.} (24. Qxc5 $6 Rxb2 25. a3 Rfb8 $11) 24... c4 {[%emt 0:00:13]} 25. Bd4 {[%emt 0:00:10]} (25. Qxc4 Rxb2 26. h3 a5 $14) 25... Qe6 {[%emt 0:00:09]} 26. Qg3 {[%emt 0:00:15]} Rb5 {[%emt 0:00:35]} 27. h3 {[%emt 0:00:11]} ({Inferior is} 27. Bxa7 Rxb2 28. Bd4 Rxa2 $17) 27... Rd5 {[%emt 0:00:11]} 28. Bc3 {[%emt 0:00:01]} ({But not} 28. Bxa7 $6 Re8 $11) 28... Rd3 {[%emt 0:00:06]} 29. Qf4 {[%emt 0:00:01]} h6 {[%emt 0:00:49]} 30. Re4 {[%emt 0:00:08]} g5 {[%emt 0:00:02]} 31. Qg4 {[%emt 0:00:18]} f5 {[%emt 0:00:15]} 32. exf6 {[%emt 0:00:03]} Qxg4 {[%emt 0:00:01]} 33. hxg4 {[%emt 0:00:01]} (33. Rxg4 {with more complications.} Kf7 34. h4 Kg6 35. hxg5 Rd1+ 36. Kh2) 33... Rxd6 {[%emt 0:00:07]} 34. Rxc4 $14 {[%emt 0:00:01][%mdl 4096] Endgame KRR-KRB} Re8 {[%emt 0:00:05]} 35. Ra4 {[%emt 0:00:08]} Rd7 {[%emt 0:00:01]} 36. f3 {[%emt 0:00:25]} (36. Ra6 $5 {[%cal Ra6c6]}) 36... Re2 {[%emt 0:00:27]} 37. Rc4 {[%emt 0:00:03]} Rd1+ {[%emt 0:01:22]} 38. Kh2 {[%emt 0:00:01]} Rf1 {[%emt 0:00:02]} 39. Rxc6 {[%emt 0:00:28]} Rxf3 {[%emt 0:00:10]} 40. Rc8+ {[%emt 0:00:04]} Kf7 {[%emt 0:00:03]} 41. Rc7+ {[%emt 0:00:01]} Ke8 {[%emt 0:00:05]} 42. Rxa7 {[%emt 0:00:52]} Rff2 {[%emt 0:00:31]} 43. Bd4 {[%emt 0:00:17]} Rf4 {[%emt 0:00:29]} (43... Rxg2+ $2 44. Kh3 Rc2 45. f7+ Kf8 46. b4 $18 (46. Bc5+ Rxc5 47. Kxg2 Rc4 $18)) 44. Ra8+ {[%emt 0:00:18]} Kf7 {[%emt 0:00:03]} 45. Ra7+ {[%emt 0:00:15]} Ke8 {[%emt 0:00:02]} 46. Bc3 {[%emt 0:00:29]} Rff2 {[%emt 0:00:02]} 47. f7+ {[%emt 0:00:47]} Rxf7 {[%emt 0:00:02]} 48. Rxf7 {[%emt 0:00:00]} (48. Ra8+ $11 Kd7 49. Ra7+ Ke8 50. Ra8+ Kd7 51. Ra7+ Ke8) 48... Kxf7 $11 {[%emt 0:00:01] KR-KB} 49. a4 {[%emt 0:00:04][%cal Ba2a4,Ba4a5,Ba5a6][%mdl 32]} Re4 {[%emt 0:00:06][%csl LRa4,LRg4]} 50. a5 {[%emt 0:00:01]} Rxg4 {[%emt 0:00:23] White should prevent ...Ra4.} (50... Ke6 $5 {[%cal Re4g4]} 51. Kh3 Ra4 $15) 51. b3 {[%emt 0:00:01][%cal Bb2b3,Bb3b4,Bb4b5,Bb5b6,Bb6b7][%mdl 32] Repels Ra4. a6 would be deadly.} Re4 {[%emt 0:00:35] White must now prevent ...Re3.} 52. a6 {[%emt 0:00:04]} Re2 {[%emt 0:00:22]} (52... Re6 $5 53. a7 $8 Ra6 $11) 53. b4 {[%emt 0:00:13] Threatens to win with b5.} Ra2 {[%emt 0:00:02]} 54. b5 {[%emt 0:00:01] Strongly threatening Bd4.} Ke6 {[%emt 0:00:00]} 55. Bd4 {[%emt 0:00:03] And now b6 would win.} Kd7 $1 {[%emt 0:00:05]} 56. Kg3 {[%emt 0:00:08]} h5 {[%emt 0:00:05]} 57. Kf3 {[%emt 0:00:02]} Kc7 $2 {[%emt 0:00:01][%mdl 8192]} (57... Kc8 $11 58. Bf6 Ra3+ 59. Ke4 Ra5 60. Bxg5 Rxb5) 58. b6+ {[%emt 0:00:05]} Kd7 {[%emt 0:00:06]} 59. b7 {[%emt 0:00:02] Weighted Error Value: White=0.09 (flawless) /Black=0.19 (very precise)} 1-0

[Event "CCT Airthings Masters Play-In 2023"]
[Site "Online"]
[Date "2023.02.03"]
[Round "3"]
[White "GMSrinath"]
[Black "Cardoso Cardoso, Jose Gabriel"]
[Result "1/2-1/2"]
[ECO "D02"]
[WhiteElo "2791"]
[BlackElo "2498"]
[Annotator "TA"]
[PlyCount "34"]
[EventDate "2023.02.03"]
[EventType "swiss"]
[EventCountry "NET"]
[SourceTitle "playchess.com"]
[Source "ChessBase"]
[SourceQuality "1"]
[TimeControl "600+2"]

{[%evp 9,34,0,9,9,6,8,15,11,13,0,0,0,0,-7,0,-42,0,0,0,0,0,0,0,0,0,0,0]} 1. Nf3 {[%emt 0:00:03]} d5 {[%emt 0:00:48]} 2. d4 {[%emt 0:00:04]} Nf6 {[%emt 0:00:05]} 3. Bf4 {[%emt 0:00:01]} c5 {[%emt 0:00:04]} 4. e3 {[%emt 0:00:01]} Nc6 {[%emt 0:00:02]} 5. Nbd2 {[%emt 0:00:02]} Bg4 {[%emt 0:01:08]} 6. h3 {[%emt 0:00:05] D02: 1 d4 d5 2 Nf3 sidelines, including 2...Nf6 3 g3 and 2...Nf6 3 Bf4.} Bxf3 {[%emt 0:00:17]} 7. Nxf3 {[%emt 0:00:00]} e6 {[%emt 0:00:01]} 8. Be2 {[%emt 0:00:05]} Bd6 {[%emt 0:00:06] [#]} 9. Bxd6 $146 {[%emt 0:00:29]} ({Predecessor:} 9. dxc5 Bxf4 10. exf4 Qa5+ 11. c3 Qxc5 12. Bd3 O-O 13. O-O Qd6 14. g3 Rfe8 15. Re1 {½-½ Aronian,L (2781)-Firouzja,A (2759) Carlsen Inv Prelim rapid 2021 (12)}) 9... Qxd6 {[%emt 0:00:03]} 10. O-O {[%emt 0:00:00]} O-O {[%emt 0:00:02]} 11. Qc1 {[%emt 0:01:27]} Rac8 {[%emt 0:00:12]} 12. c4 {[%emt 0:00:51]} dxc4 {[%emt 0:01:57][%cal Rc5d4]} 13. dxc5 {[%emt 0:00:03] The position is equal.} Qxc5 {[%emt 0:00:01]} 14. Qxc4 {[%emt 0:00:00]} Qxc4 {[%emt 0:00:12]} 15. Bxc4 {[%emt 0:00:01]} Nd4 {[%emt 0:00:13][%mdl 64] [#] ...Nxf3+ would be deadly. Discovered Attack} 16. Nxd4 {[%emt 0:00:03]} Rxc4 {[%emt 0:00:01]} 17. Rfd1 {[%emt 0:00:01]} a6 {[%emt 0:01:00] An uneventful encounter.   Weighted Error Value: White=0.06 (flawless) /Black=0.08 (flawless)} 1/2-1/2

[Event "CCT Airthings Masters Play-In 2023"]
[Site "Online"]
[Date "2023.02.03"]
[Round "3"]
[White "Nakamura, Hikaru"]
[Black "xxysoul6"]
[Result "0-1"]
[ECO "A47"]
[WhiteElo "2768"]
[BlackElo "2618"]
[Annotator "TA"]
[PlyCount "80"]
[EventDate "2023.02.03"]
[EventType "swiss"]
[EventCountry "NET"]
[SourceTitle "playchess.com"]
[Source "ChessBase"]
[SourceQuality "1"]
[TimeControl "600+2"]

{[%evp 22,80,5,0,0,0,0,-43,-40,-18,-5,-22,0,-72,-49,-141,-152,-135,-129,-238,-230,-272,-110,-102,-94,-89,-101,-167,-152,-175,-158,-155,-100,-143,-60,-127,-104,-212,-202,-193,-105,-166,-162,-156,-139,-177,-180,-375,-329,-415,-387,-909,-621,-890,0,-864,-853,-543,-536,-29997,-29998]} 1. d4 {[%emt 0:00:03]} Nf6 {[%emt 0:00:08]} 2. Bg5 {[%emt 0:00:02]} d5 {[%emt 0:00:02]} 3. e3 {[%emt 0:00:01]} c5 {[%emt 0:00:02]} 4. Nd2 {[%emt 0:00:06]} Nc6 {[%emt 0:00:13]} 5. c3 {[%emt 0:00:04]} e6 {[%emt 0:00:20]} 6. Bd3 {[%emt 0:00:08]} Be7 {[%emt 0:00:05]} 7. Ngf3 {[%emt 0:00:01]} O-O {[%emt 0:00:06]} 8. O-O {[%emt 0:00:23]} b6 {[%emt 0:00:10]} 9. Re1 {[%emt 0:00:33][%cal Bf1e1,Be1e4,Be4a4][%mdl 32]} Bb7 {[%emt 0:00:04]} 10. dxc5 {[%emt 0:00:07]} bxc5 {[%emt 0:00:09]} 11. e4 {[%emt 0:00:01]} h6 {[%emt 0:00:02]} 12. Bh4 {[%emt 0:00:31] [#]} dxe4 $146 {[%emt 0:00:22] A47: 1 d4 Nf6 2 Nf3 b6: Torre, London and Colle Systems.} ({Predecessor:} 12... Qb6 13. e5 Nd7 14. Bg3 Rab8 15. Rb1 Ba6 16. Bc2 c4 17. b4 cxb3 18. axb3 Qc5 19. Re3 Rfc8 20. b4 Nxb4 {½-½ Deviatkin,A (2464)-Djordjevic,V (2414) Titled Tuesday intern op 4th Dec blitz 2018 (8)}) 13. Nxe4 {[%emt 0:00:21]} Nxe4 {[%emt 0:00:25]} 14. Rxe4 {[%emt 0:00:10]} Bxh4 {[%emt 0:00:22] Black is slightly better.} 15. Nxh4 {[%emt 0:00:04]} f5 {[%emt 0:01:09][%cal Bf7f5,Bf5f4][%mdl 32]} 16. Ra4 {[%emt 0:00:21]} Ne5 {[%emt 0:00:03]} 17. Bf1 {[%emt 0:00:29]} (17. Ba6 $11 {keeps the balance.} Rb8 18. Qxd8 Rfxd8 19. Bxb7 Rxb7 20. b3) 17... Qf6 $1 $36 {[%emt 0:01:51][%mdl 2048] ...Bc6 would be deadly. White is under pressure.} 18. f4 {[%emt 0:00:11]} ({Better is} 18. Qe2 $15) 18... Qxh4 {[%emt 0:01:22]} 19. fxe5 {[%emt 0:00:05]} Qg5 {[%emt 0:00:02]} 20. Qe1 {[%emt 0:01:03]} (20. h4 $17 Qe3+ 21. Kh1) 20... f4 $1 $19 {[%emt 0:00:33] Threatens to win with ...f3.} 21. Qf2 {[%emt 0:00:06]} Rad8 {[%emt 0:00:12]} (21... Qxe5 22. Be2 $15) (21... f3 $19 {is more deadly. ( -> ...fxg2)} 22. g3 Rad8) 22. Rxa7 $17 {[%emt 0:02:19]} Rf7 {[%emt 0:00:32][%cal Ob7g2]} 23. h4 {[%emt 0:01:12]} (23. Qxc5 $2 Bxg2 24. Rxf7 (24. Bxg2 $2 Rd2 $19) (24. h4 $2 Qg4 $19) 24... Ba8+ 25. Kf2 Kxf7 $19) 23... Qxe5 {[%emt 0:00:01]} 24. Re1 {[%emt 0:00:04] Dodges f3} (24. Bc4 $17 {is a better defense.}) 24... Qb8 $1 $19 {[%emt 0:00:02]} 25. Rxb7 {[%emt 0:00:15]} (25. Qxc5 $2 f3 26. Rxb7 Rxb7 $19) 25... Rxb7 {[%emt 0:00:10]} 26. b3 {[%emt 0:00:01]} Rbd7 {[%emt 0:00:58]} (26... Re7 $142 27. Qxc5 Ree8) 27. Rxe6 $17 {[%emt 0:00:12]} Rd2 {[%emt 0:01:03]} (27... Rd1 $17 {aiming for ...Rc1.} 28. Re1 Kh8 29. Rxd1 Rxd1) 28. Re2 {[%emt 0:00:11]} ({White should play} 28. Qf3 $1 $15) 28... Rxe2 {[%emt 0:00:07]} 29. Bxe2 {[%emt 0:00:00][%mdl 4096] Endgame [#] KQR-KQB} (29. Qxe2 $17 Kh8 30. Qe4) 29... Qe5 $1 $19 {[%emt 0:00:02]} 30. a4 {[%emt 0:00:51]} g5 {[%emt 0:00:19]} (30... Qxc3 31. Bc4+ Kh7 32. Qxf4 $17) ({Black should try} 30... Kf8 $19 {Hoping for ...Rd2.} 31. Kf1 Ke7) 31. hxg5 {[%emt 0:00:07]} (31. Qf3 $17 {might work better.}) 31... hxg5 {[%emt 0:00:00]} (31... Qxc3 32. Bc4+ Kh7 33. Qxf4 Rd1+ 34. Kh2 hxg5 35. Qf5+ (35. Qxg5 Qd4 $11) 35... Kh6 36. Qe6+ (36. Qxc5 Qf6 $11) 36... Kg7 37. Be2 $11 (37. Qe7+ Kh6 $11)) 32. Qf3 {[%emt 0:00:01]} Kg7 {[%emt 0:00:02] Black is more active.} 33. a5 {[%emt 0:00:04] [#]} Rd2 $1 {[%emt 0:00:06]} 34. Kf2 {[%emt 0:00:03]} (34. Bb5 {was necessary.}) 34... Ra2 {[%emt 0:00:02]} 35. a6 {[%emt 0:00:03]} Qe6 {[%emt 0:00:02] ...g4 is the strong threat.} 36. Kf1 $2 {[%emt 0:00:17]} (36. Ke1) 36... Ra1+ {[%emt 0:00:01]} (36... Qxb3 37. Qe4 $11) 37. Kf2 {[%emt 0:00:01]} Ra2 {[%emt 0:00:00]} (37... Qxb3 38. Qc6 $11) 38. Kf1 {[%emt 0:00:06]} c4 {[%emt 0:00:03]} ({Inferior is} 38... Qxb3 39. Qe4 $11) 39. bxc4 {[%emt 0:00:12]} Ra1+ {[%emt 0:00:02]} (39... Rxa6 $2 {loses.} 40. Qd3 $19) ({Not} 39... Qxa6 40. Qd5 $15) 40. Kf2 {[%emt 0:00:01]} Qb6+ {[%emt 0:00:02] An entertaining game by xxysoul6.   Weighted Error Value: White=0.77/Black=0.30} 0-1

[Event "CCT Airthings Masters Play-In 2023"]
[Site "Online"]
[Date "2023.02.03"]
[Round "3"]
[White "Radjabov, Teimour"]
[Black "BillieKimbah"]
[Result "1/2-1/2"]
[ECO "D35"]
[WhiteElo "2747"]
[BlackElo "2576"]
[Annotator "TA"]
[PlyCount "61"]
[EventDate "2023.02.03"]
[EventType "swiss"]
[EventCountry "NET"]
[SourceTitle "playchess.com"]
[Source "ChessBase"]
[SourceQuality "1"]
[TimeControl "600+2"]

{[%evp 18,61,15,0,2,0,0,0,0,0,0,0,0,-16,-38,-44,0,-14,124,79,197,197,259,232,254,243,247,19,19,19,34,27,38,0,0,0,0,0,0,0,0,0,0,0,0,0]} 1. d4 {[%emt 0:00:03]} Nf6 {[%emt 0:00:04]} 2. c4 {[%emt 0:00:01]} e6 {[%emt 0:00:02]} 3. Nf3 {[%emt 0:00:06]} d5 {[%emt 0:00:01]} 4. Nc3 {[%emt 0:00:02]} Nbd7 {[%emt 0:00:02]} 5. cxd5 {[%emt 0:00:06]} exd5 {[%emt 0:00:01]} 6. Bf4 {[%emt 0:00:02]} c6 {[%emt 0:00:04]} 7. e3 {[%emt 0:00:03]} Nh5 {[%emt 0:00:04]} 8. Bg5 {[%emt 0:00:01]} Be7 {[%emt 0:00:03]} 9. Bxe7 {[%emt 0:00:02]} Qxe7 {[%emt 0:00:00]} 10. Qc2 {[%emt 0:00:01]} g6 {[%emt 0:00:12] D35: Queen's Gambit Declined: Exchange Variation.} 11. h3 {[%emt 0:00:06] [#]} O-O $5 $146 {[%emt 0:00:16][%mdl 8] An interesting novelty.} ({Predecessor:} 11... Nb6 12. Be2 Bf5 13. Qb3 Nf6 14. a4 Be4 15. a5 Bxf3 16. Bxf3 Nc4 17. Be2 Nd6 18. a6 {1-0 Wojtaszek,R (2734)-Vovk,Y (2600) POL-chT Poland 2017 (9.1)}) 12. Be2 {[%emt 0:00:06]} Re8 {[%emt 0:00:13]} 13. O-O-O {[%emt 0:00:29]} a5 {[%emt 0:00:31]} 14. g4 {[%emt 0:01:34]} Nhf6 {[%emt 0:00:06]} 15. g5 {[%emt 0:00:07]} Ne4 {[%emt 0:00:08]} 16. Bd3 {[%emt 0:00:20]} b5 {[%emt 0:02:15]} 17. h4 {[%emt 0:00:08]} (17. Nxe4 $2 dxe4 18. Qxc6 Ba6 19. Qxe4 Qxe4 20. Bxe4 Rxe4 $19) 17... Bb7 {[%emt 0:00:05] [#]} (17... b4 $11 18. Na4 (18. Nxe4 $2 dxe4 19. Qxc6 Ra7 $19) 18... Ba6) 18. h5 $1 $16 {[%emt 0:00:09]} Rac8 {[%emt 0:01:01]} (18... Nxg5 $2 19. Nxg5 Qxg5 20. hxg6 hxg6 21. Rdg1 $18) (18... b4 $16 {was necessary.} 19. Nxe4 dxe4) 19. hxg6 $18 {[%emt 0:01:35]} hxg6 {[%emt 0:00:03]} (19... fxg6 $142 20. Bxe4 dxe4) 20. Rh6 {[%emt 0:02:45]} c5 {[%emt 0:00:09] Hoping for ...cxd4.} (20... Nxg5 21. Bxg6 Nxf3 22. Qf5 $18) 21. Rdh1 {[%emt 0:00:37]} (21. Nxb5 $2 cxd4 22. Nc7 Nf8 $19) 21... Nf8 {[%emt 0:00:02] And now ...cxd4 would win.} 22. Bxe4 $2 {[%emt 0:00:54]} (22. Nxb5 $2 cxd4 $19) (22. Rh8+ Kg7) (22. Bxb5 $18 Red8 23. Rh8+ Kg7 24. Kb1) 22... dxe4 $11 {[%emt 0:00:30]} 23. Ne5 {[%emt 0:00:04]} (23. Rh8+ $2 Kg7 24. d5 exf3 $19) 23... cxd4 {[%emt 0:02:56] [#]} 24. f4 {[%emt 0:00:08]} dxc3 {[%emt 0:00:19]} 25. Qh2 {[%emt 0:00:50] Intending Rh8+ and mate.} cxb2+ {[%emt 0:00:02] The position is equal.} 26. Kxb2 {[%emt 0:00:04]} Qb4+ {[%emt 0:00:10]} 27. Ka1 {[%emt 0:00:02] White wants to mate with Rh8+. Some like it hot} Qc3+ {[%emt 0:00:04]} 28. Kb1 $1 {[%emt 0:00:01]} Qb4+ {[%emt 0:00:05]} (28... Qxe3 $2 {leads to mate.} 29. Rh8+ Kg7 30. Qh6#) 29. Ka1 $1 {[%emt 0:00:01] Rh8+ would kill now.} Qc3+ {[%emt 0:00:06]} 30. Kb1 $1 {[%emt 0:00:03] White threatens Rh8+ and mate.} Qb4+ {[%emt 0:00:02]} (30... Qxe3 $2 {is a self mate.} 31. Rh8+ Kg7 32. Qh6#) 31. Ka1 $1 {[%emt 0:00:01] Weighted Error Value: White=0.19 (very precise) /Black=0.34} 1/2-1/2

[Event "CCT Airthings Masters Play-In 2023"]
[Site "Online"]
[Date "2023.02.03"]
[Round "3"]
[White "Dominguez Perez, Leinier"]
[Black "daro94"]
[Result "1-0"]
[ECO "C79"]
[WhiteElo "2743"]
[BlackElo "2574"]
[Annotator "NA"]
[PlyCount "97"]
[EventDate "2023.02.03"]
[EventType "swiss"]
[EventCountry "NET"]
[SourceTitle "playchess.com"]
[Source "ChessBase"]
[SourceQuality "1"]
[TimeControl "600+2"]

1. e4 {[%emt 0:00:03]} e5 {[%emt 0:00:06]} 2. Nf3 {[%emt 0:00:01]} Nc6 {[%emt 0:00:01]} 3. Bb5 {[%emt 0:00:01]} a6 {[%emt 0:00:23]} 4. Ba4 {[%emt 0:00:02]} d6 {[%emt 0:00:16]} 5. O-O {[%emt 0:00:03]} Bd7 {[%emt 0:00:02]} 6. c3 {[%emt 0:00:03]} g6 {[%emt 0:00:00]} 7. d4 {[%emt 0:00:02]} Bg7 {[%emt 0:00:01]} 8. Re1 {[%emt 0:00:01]} Nf6 {[%emt 0:00:08]} 9. h3 {[%emt 0:00:01]} O-O {[%emt 0:00:03]} 10. Bc2 {[%emt 0:00:01]} Qe8 {[%emt 0:00:10]} 11. Nbd2 {[%emt 0:00:12]} Nh5 {[%emt 0:00:35]} 12. Nc4 {[%emt 0:01:25]} Kh8 {[%emt 0:00:11]} 13. Ne3 {[%emt 0:01:10]} Nf4 {[%emt 0:01:25]} 14. Nd5 {[%emt 0:00:23]} Ne6 {[%emt 0:00:01]} 15. dxe5 {[%emt 0:01:02]} Nxe5 {[%emt 0:00:18]} 16. Nd4 {[%emt 0:00:29]} Qd8 {[%emt 0:00:11]} 17. f4 {[%emt 0:00:01]} Nc6 {[%emt 0:02:23]} 18. Nf3 {[%emt 0:00:03]} f5 {[%emt 0:01:38]} 19. exf5 {[%emt 0:00:06]} gxf5 {[%emt 0:00:01]} 20. Be3 {[%emt 0:00:02]} Ne7 {[%emt 0:00:19]} 21. Nxe7 {[%emt 0:00:59]} Qxe7 {[%emt 0:00:00]} 22. Bd4 {[%emt 0:00:01]} Bxd4+ {[%emt 0:00:27]} 23. Nxd4 {[%emt 0:00:08]} Qf6 {[%emt 0:00:01]} 24. Bxf5 {[%emt 0:00:46]} Rae8 {[%emt 0:00:50]} 25. Bxe6 {[%emt 0:01:55]} Bxe6 {[%emt 0:00:02]} 26. Nxe6 {[%emt 0:00:04]} Rxe6 {[%emt 0:00:00]} 27. Rxe6 {[%emt 0:00:05]} Qxe6 {[%emt 0:00:00]} 28. Qd4+ {[%emt 0:00:22]} Kg8 {[%emt 0:00:01]} 29. Rf1 {[%emt 0:00:01]} c5 {[%emt 0:00:03]} 30. Qd2 {[%emt 0:00:20]} d5 {[%emt 0:00:12]} 31. Re1 {[%emt 0:00:07]} Qf5 {[%emt 0:00:49]} 32. Re5 {[%emt 0:00:02]} Qxf4 {[%emt 0:00:01]} 33. Qxf4 {[%emt 0:00:05]} Rxf4 {[%emt 0:00:00]} 34. Rxd5 {[%emt 0:00:01]} c4 {[%emt 0:00:25]} 35. Rd8+ {[%emt 0:00:08]} Kg7 {[%emt 0:00:02]} 36. Rd7+ {[%emt 0:00:00]} Kg6 {[%emt 0:00:02]} 37. Rxb7 {[%emt 0:00:02]} Rf6 {[%emt 0:00:04]} 38. Rb4 {[%emt 0:00:27]} Rc6 {[%emt 0:00:01]} 39. Kf2 {[%emt 0:00:04]} Kf5 {[%emt 0:00:04]} 40. Ke3 {[%emt 0:00:01]} Re6+ {[%emt 0:00:04]} 41. Kd4 {[%emt 0:00:06]} Re4+ {[%emt 0:00:01]} 42. Kc5 {[%emt 0:00:07]} Re2 {[%emt 0:00:00]} 43. g4+ {[%emt 0:00:06]} Kg5 {[%emt 0:00:00]} 44. Kxc4 {[%emt 0:00:03]} Rh2 {[%emt 0:00:03]} 45. Kc5 {[%emt 0:00:03]} Rxh3 {[%emt 0:00:03]} 46. Kb6 {[%emt 0:00:03]} Rh4 {[%emt 0:00:04]} 47. Kxa6 {[%emt 0:00:03]} Rxg4 {[%emt 0:00:00]} 48. Rxg4+ {[%emt 0:00:05]} Kxg4 {[%emt 0:00:01]} 49. c4 {[%emt 0:00:01]} 1-0